[Event "44th Chess Olympiad Open 2022"]
[Site "Chennai"]
[Date "2022.08.07"]
[Round "9.16"]
[White "Rodshtein, Maxim"]
[Black "De La Riva Aguado, Oscar"]
[Result "1-0"]
[WhiteElo "2596"]
[BlackElo "2424"]
[Annotator "TA"]
[PlyCount "83"]
[EventDate "2022.??.??"]
[TimeControl "60"]

{[%evp 20,83,45,25,36,0,6,10,2,0,-7,-3,0,0,38,47,88,95,80,65,91,88,76,88,90,0,
79,74,104,0,0,0,0,0,0,0,57,0,0,-153,-6,-68,0,0,840,837,840,835,825,819,789,787,
29972,29973,29973,29974,29975,29976,5685,5613,29984,29985,29985,29986,29986,
6291]} 1. d4 {[%emt 0:00:06]} Nf6 {[%emt 0:00:23]} 2. c4 {[%emt 0:00:26]} g6 {
[%emt 0:00:17]} 3. Nc3 {[%emt 0:00:42]} Bg7 {[%emt 0:00:15]} 4. e4 {[%emt 0:00:
00]} d6 {[%emt 0:00:26]} 5. f3 {[%emt 0:01:27]} O-O {[%emt 0:00:26]} 6. Nge2 {
[%emt 0:00:10]} c5 {[%emt 0:02:17]} 7. Be3 {[%emt 0:00:37]} Nc6 {[%emt 0:00:21]
} 8. d5 {[%emt 0:00:46]} Ne5 {[%emt 0:00:11]} 9. Ng3 {[%emt 0:00:24]} e6 {
[%emt 0:05:10]} 10. Be2 {[%emt 0:01:27]} exd5 {[%emt 0:00:27]} 11. cxd5 {
[%emt 0:01:39]} h5 {[%emt 0:02:05][%cal Yh7h5,Yh5h4,Yh4h3] [#] A65: Modern
Benoni: 6 e4.} 12. Bg5 $146 {[%emt 0:12:27]} ({Predecessor:} 12. O-O a6 13. a4
Rb8 14. h3 Re8 15. Nh1 Qb6 16. Qc2 Qb4 17. Nf2 Nc4 18. Bc1 Na5 19. Bf4 c4 20.
Be3 Nd7 21. f4 {0-1 (58) Omelja,A (2515)-Jaracz,P (2463) Chess.com INT 2022})
12... Qb6 {[%emt 0:06:38]} 13. Qb3 {[%emt 0:10:45]} Qc7 {[%emt 0:06:09] The
position is equal.} 14. a4 {[%emt 0:25:31]} Nh7 {[%emt 0:07:21]} 15. Bd2 {
[%emt 0:00:18]} h4 {[%emt 0:08:38]} 16. Nf1 {[%emt 0:00:05]} h3 {[%emt 0:00:06]
} 17. g4 {[%emt 0:07:08]} f5 {[%emt 0:03:14]} 18. gxf5 {[%emt 0:01:02]} gxf5 {
[%emt 0:00:11]} 19. f4 {[%emt 0:00:51]} c4 $1 {[%emt 0:04:50]} 20. Qa3 {
[%emt 0:04:11]} Nd3+ {[%emt 0:02:44]} 21. Bxd3 {[%emt 0:00:07]} cxd3 {[%emt 0:
00:00]} 22. Rg1 {[%emt 0:01:39]} (22. Nb5 $1 $16 {[%cal Rb5c7]} Qe7 23. Qxd3)
22... fxe4 {[%emt 0:07:22]} (22... Bd7 $11) 23. Nb5 $1 $16 {[%emt 0:01:08]} (
23. Nxe4 $2 Re8 24. Qxd3 Nf6 $19) 23... Qe7 {[%emt 0:02:11]} 24. Qxd6 {[%emt 0:
00:00]} (24. O-O-O $16) 24... Qh4+ $11 {[%emt 0:02:16]} 25. Rg3 $1 {[%emt 0:00:
00] And now Rc1 would win.} Qh5 $1 {[%emt 0:10:39][%csl Gd3][%cal Rh5e2]} 26.
Rxg7+ $40 {[%emt 0:04:11] Black needs to defend precisely.} Kxg7 {[%emt 0:00:
05][%csl Gd3][%cal Rh5e2]} 27. Ng3 {[%emt 0:00:04][%csl Ye4,Yh5] Prevents Qe2+.
} Qg4 {[%emt 0:00:13]} (27... Qf3 $11 28. Rc1 Nf6) 28. Rc1 {[%emt 0:02:54]} (
28. Nc7 $14 Rb8 29. Na6 bxa6 30. Qxb8) 28... Bd7 {[%emt 0:00:00] ...Rf6 is the
strong threat.} 29. f5 $2 {[%emt 0:07:02]} (29. Rc7 Nf6 30. Qe5 (30. Bc3 $2 Kg8
$19) 30... Kg8 31. Qg5+ Qxg5 32. fxg5 Ng4 $1 $19) (29. Nc7 $1 $11 Rac8 30. Ne6+
Bxe6 31. dxe6) 29... Bxf5 {[%emt 0:07:31]} (29... Rad8 $17 {White must now
prevent ...Nf6.} 30. Qh6+ (30. Rc7 $2 Nf6 $19) 30... Kg8) 30. Nd4 {[%emt 0:02:
30]} ({White should play} 30. Nxf5+ $11 Qxf5 31. Rc7+ (31. Bh6+ $2 Kh8 $19)
31... Kh8 32. Bc3+ Rf6 33. Rxh7+ Kxh7 34. Bxf6 (34. Qxf6 $2 Qxf6 35. Bxf6 Rg8
$19)) 30... Bd7 {[%emt 0:05:37]} (30... Kg8 $2 31. Ndxf5 Rf6 32. Qd7 $18) ({
Black should try} 30... Bg6 $15 31. Ne6+ (31. Qe5+ Kg8 $17) 31... Kg8 32. Nxf8
Rxf8) 31. Rc7 {[%emt 0:02:16][%csl Yb7,Yd7] Intending Ndf5+ and mate. Dancing
on a razor blade.} Rf7 {[%emt 0:00:46] [#] Prevents Ndf5+.} (31... Rad8 $11 32.
Ne6+ Kg8 33. Rxd7 (33. Qe7 $2 Rfe8 $19) 33... Rf1+ 34. Kxf1 Qd1+ 35. Be1 (35.
Kf2 Qxd2+ 36. Kf1 Qd1+ 37. Kf2 Qd2+ 38. Kf1 Qd1+ 39. Kf2 Qd2+ $11) 35... Qf3+
36. Bf2 Qd1+ 37. Be1 Qf3+ 38. Bf2 Qd1+ 39. Be1) 32. Rxd7 $1 $18 {[%emt 0:05:08]
} Qxd7 {[%emt 0:03:52] [#]} 33. Ndf5+ $1 {[%emt 0:00:16] Pair of Knights!} Kh8
{[%emt 0:01:04]} (33... Kg8 34. Nh6+) 34. Bc3+ {[%emt 0:01:12]} Nf6 {[%emt 0:
00:05]} 35. Bxf6+ {[%emt 0:00:53]} Kh7 {[%emt 0:07:27] [#]} 36. Qf4 $1 {
[%emt 0:00:24]} d2+ {[%emt 0:01:53]} 37. Kxd2 {[%emt 0:00:16]} Rxf6 {[%emt 0:
01:08]} 38. Qh4+ {[%emt 0:00:09]} Kg8 {[%emt 0:00:21]} 39. Qxf6 {[%emt 0:00:08]
Ne7+ would kill now.} Qxd5+ {[%emt 0:00:00] [#]} 40. Ke3 $1 {[%emt 0:02:07]
[%csl Gf5][%cal Rf6g7] White mates.} ({Less strong is} 40. Ke1 Qa5+ 41. Ke2
Qa6+ 42. Qxa6 bxa6 $16) 40... Qc5+ {[%emt 0:01:32]} 41. Kf4 {[%emt 0:30:40]
[%csl Gf5][%cal Rf6g7]} Qc7+ {[%emt 0:00:00]} 42. Kg5 {[%emt 0:02:06] Weighted
Error Value: White=0.20 (precise) / Black=0.56} (42. Kg4 $142 Qd7 43. Kh4 Re8
44. Nh6+ Kh7 45. Nf7 Qe7 46. Ng5+ Kg8 47. Qg6+ Kf8 48. Nf5) 1-0

[Event "44th Chess Olympiad Open 2022"]
[Site "Chennai"]
[Date "2022.08.07"]
[Round "9.16"]
[White "Fluvia Poyatos, Jordi"]
[Black "Smirin, Ilia"]
[Result "0-1"]
[WhiteElo "2451"]
[BlackElo "2601"]
[Annotator "TA"]
[PlyCount "126"]
[EventDate "2022.??.??"]
[TimeControl "60"]

{[%evp 11,126,16,33,15,16,-6,56,44,63,24,46,47,64,24,50,43,58,35,29,25,35,17,
16,27,24,37,58,50,42,0,0,0,0,-164,-145,-168,-130,-206,-233,-282,-154,-169,0,
-179,-78,-76,-73,-77,-57,-57,-61,-57,-61,-61,38,0,14,12,2,0,17,4,20,0,106,-79,
98,-272,-247,-490,-490,-479,-486,-486,-472,-479,-462,-464,-442,-442,-442,-445,
-412,-617,-431,-660,-432,-619,-498,-573,-504,-1007,-999,-915,-769,-777,-743,
-668,-626,-596,-588,-5905,-4586,-12848,-29938,-29939,-6136,-10165,-5762,-29966,
-29965,-29971,-29971,-29978,-29979,-29981,-29981]} 1. e4 {[%emt 0:00:05]} c5 {
[%emt 0:00:12]} 2. Nf3 {[%emt 0:00:21]} Nc6 {[%emt 0:00:15]} 3. d4 {[%emt 0:00:
00]} cxd4 {[%emt 0:00:09]} 4. Nxd4 {[%emt 0:00:07]} Qb6 {[%emt 0:00:21]} 5. Nb3
{[%emt 0:02:14]} Nf6 {[%emt 0:00:14]} 6. Bd3 {[%emt 0:01:55]} e6 {[%emt 0:00:
00]} 7. c4 {[%emt 0:09:06][%cal Yc2c4,Yc4c5] B32: Sicilian: Löwenthal and
Kalashnikov Variations.} Ne5 {[%emt 0:06:56]} 8. O-O {[%emt 0:00:00]} a6 {
[%emt 0:03:11] [#]} (8... Qd6 $11 9. Be2 Nxe4) 9. Bf4 $146 {[%emt 0:05:19]
White is slightly better.} ({Predecessor:} 9. Nc3 Qc7 10. Bg5 Nfg4 11. Bf4 h5
12. Rc1 g5 13. Bxe5 Qxe5 14. g3 Bd6 15. c5 {1-0 (35) Kokarev,D (2593)-Remizov,
Y (2394) Sochi 2019}) 9... d6 {[%emt 0:02:49]} 10. c5 {[%emt 0:00:00]} Qc7 {
[%emt 0:17:40]} 11. Na3 $1 {[%emt 0:05:23]} Nfd7 {[%emt 0:00:16]} 12. cxd6 {
[%emt 0:20:00]} (12. Bb5 {keeps more tension.} dxc5 13. Bxd7+ Bxd7 14. Nc4)
12... Bxd6 {[%emt 0:01:32][%cal Ye5f3]} 13. Rc1 {[%emt 0:00:30]} Qb8 {[%emt 0:
01:49]} 14. Bb1 {[%emt 0:01:21][%cal Yc1c8] Black must now prevent Rxc8+!} (14.
Bg3 $5 {[%cal Rd3b1]}) 14... O-O {[%emt 0:02:32][%cal Ye5f3]} 15. Bg3 {[%emt 0:
00:12]} b5 {[%emt 0:00:59]} 16. f4 {[%emt 0:08:23]} Bxa3 {[%emt 0:00:00]} 17.
bxa3 {[%emt 0:02:24]} Nc4 {[%emt 0:00:06]} 18. e5 {[%emt 0:00:35]} f5 {[%emt 0:
04:29]} 19. exf6 {[%emt 0:01:38]} Nxf6 {[%emt 0:00:04]} 20. f5 {[%emt 0:01:03]}
e5 {[%emt 0:02:17]} 21. Nc5 {[%emt 0:00:51]} Bb7 {[%emt 0:00:00][%cal Yb7g2]
And now ...Bxg2! would win.} 22. a4 $2 {[%emt 0:02:02] [#]} (22. Qe2 $11) 22...
Bxg2 $1 $19 {[%emt 0:01:47]} 23. Re1 {[%emt 0:00:00]} (23. Rf2 Rd8) 23... Rd8 {
[%emt 0:03:31]} 24. Qb3 {[%emt 0:02:08]} (24. Bd3 $17 {was forced.} Bd5 25.
Bxc4 bxc4 26. Qe2) 24... Bd5 {[%emt 0:00:47]} 25. Qb4 {[%emt 0:02:51]} Nh5 {
[%emt 0:11:46] Pair of Knights!} (25... Qa7 $19 {Threatens to win with ...a5.}
26. Bd3 Rac8 27. axb5 axb5) 26. Be4 $17 {[%emt 0:00:00]} Nf6 $2 {[%emt 0:05:11]
} ({Black should play} 26... Bxe4 $19 27. Nxe4 Qa7+ 28. Qc5 Qb7) 27. Bxd5+ $2 {
[%emt 0:01:53]} (27. Bb1 $1 $11 {and White is okay.}) 27... Nxd5 {[%emt 0:00:
27]} (27... Rxd5 $19 28. Bf2 e4 29. Nxe4 Rxf5) 28. Qb3 {[%emt 0:00:50]} Qb6 {
[%emt 0:02:57]} 29. Bf2 {[%emt 0:00:22]} Qf6 {[%emt 0:00:05]} 30. Ne6 {[%emt 0:
01:04] [#]} Qxf5 $1 {[%emt 0:03:55]} 31. Nxd8 {[%emt 0:00:19]} Rxd8 {[%emt 0:
00:02][%cal Ya8d8,Yd8d6,Yd6d2] Really sharp!} 32. Rcd1 {[%emt 0:02:02] [#]
Prevents Nd2.} Qg6+ {[%emt 0:06:05]} ({Of course not} 32... Rf8 33. Bc5 Rd8 34.
axb5 axb5 35. Qxb5 Qg4+ 36. Kh1 $11) ({Better is} 32... Nd2 $1 $15 33. Rxd2
Qg5+ 34. Bg3 Qxd2 35. axb5 Qd4+ 36. Bf2 Qg4+ 37. Qg3 Qxg3+ 38. hxg3 axb5 39.
Rxe5 Kf7) 33. Qg3 {[%emt 0:00:15]} Qc6 {[%emt 0:00:08]} 34. axb5 {[%emt 0:00:
09]} axb5 {[%emt 0:00:05]} 35. Qf3 {[%emt 0:01:05]} h6 {[%emt 0:00:20]} 36. Qe4
{[%emt 0:00:21]} Rd6 {[%emt 0:00:00]} 37. Rd3 {[%emt 0:00:16]} Qd7 {[%emt 0:02:
06]} (37... Nb2 $11 38. Rf3 Nc4) 38. Red1 $2 {[%emt 0:00:26] [#]} (38. Bc5 $16
Nf4 39. Bxd6 Qa7+ 40. Rde3 $1 Nh3+ 41. Kg2 Nf4+ 42. Kh1 Nxd6 43. Qc6) 38... Nb2
$2 {[%emt 0:00:00]} (38... Nc3 $1 $17 {[%cal Rc3e4] stays on course.} 39. Rxd6
Nxd6 40. Qa8+ Kh7) 39. Rxd5 $4 {[%emt 0:01:06] This move loses the game for
White.} Nxd1 $19 {[%emt 0:00:14]} 40. Rxe5 {[%emt 0:00:29]} (40. Rxd6 Qxd6 41.
Be1) 40... Nxf2 {[%emt 0:00:47]} 41. Kxf2 $16 {[%emt 0:02:29] Endgame KQR-KQR}
Rd2+ {[%emt 0:02:52]} 42. Kg3 {[%emt 0:06:19]} Rxa2 {[%emt 0:02:16]} ({Worse is
} 42... Qd6 43. Qa8+ Kh7 44. Qe4+ Kh8 45. Qa8+ Kh7 46. Qe4+ Kg8 47. Qa8+ Kh7
$17) 43. Qd5+ {[%emt 0:02:05]} Qxd5 {[%emt 0:00:05]} 44. Rxd5 $19 {[%emt 0:00:
02] KR-KR} Ra3+ {[%emt 0:03:23]} 45. Kg4 {[%emt 0:01:26]} Ra4+ {[%emt 0:04:34]}
46. Kg3 {[%emt 0:00:09]} Rb4 {[%emt 0:00:03]} 47. Rd7 {[%emt 0:00:00]} (47. h4
$142 Rb1 48. Kf3) 47... Kh7 {[%emt 0:02:28] ...h5 is the strong threat.} 48.
Rd6 {[%emt 0:00:47]} (48. h4 $142) 48... h5 {[%emt 0:00:17]} 49. Rb6 {[%emt 0:
01:55]} (49. Rd7 $142 Kh6 50. Rd6+ g6 51. Rd2) 49... g6 {[%emt 0:00:15]} 50.
Rb7+ {[%emt 0:03:44]} Kh6 {[%emt 0:00:04]} 51. h4 {[%emt 0:00:00]} (51. Rd7
$142 Rb3+ 52. Kf4) 51... g5 {[%emt 0:03:53]} 52. Rb6+ {[%emt 0:01:19]} Kg7 {
[%emt 0:00:06] Strongly threatening ...Rb3+.} 53. hxg5 {[%emt 0:00:12]} Rg4+ {
[%emt 0:00:04]} 54. Kf3 {[%emt 0:01:44]} Rxg5 {[%emt 0:00:00]} 55. Kf4 {
[%emt 0:00:18]} Rc5 {[%emt 0:01:01]} 56. Ke4 {[%emt 0:00:23]} h4 {[%emt 0:01:
21][%cal Yh5h4,Yh4h3] Hoping for ...h3.} 57. Kf4 {[%emt 0:05:26]} h3 {[%emt 0:
00:54]} 58. Rb7+ {[%emt 0:00:21]} Kf6 {[%emt 0:00:00]} 59. Rb6+ {[%emt 0:00:06]
} Ke7 {[%emt 0:00:06] ( -> ...Rh5)} 60. Rh6 {[%emt 0:00:07] Inhibits Rh5.} Rc3
{[%emt 0:00:23] Black mates.} 61. Ke5 {[%emt 0:00:17]} b4 {[%emt 0:00:35][%cal
Yb5b4,Yb4b3]} 62. Rh7+ {[%emt 0:00:22]} Kf8 {[%emt 0:01:03]} 63. Ke6 {[%emt 0:
05:44]} b3 {[%emt 0:00:00] Weighted Error Value: White=0.64/Black=0.44} 0-1

[Event "44th Chess Olympiad Open 2022"]
[Site "Chennai"]
[Date "2022.08.07"]
[Round "9.16"]
[White "Ribera Veganzones, Josep Maria"]
[Black "Postny, Evgeny"]
[Result "0-1"]
[WhiteElo "2228"]
[BlackElo "2564"]
[Annotator "TA"]
[PlyCount "52"]
[EventDate "2022.??.??"]
[TimeControl "60"]

{[%evp 9,52,37,40,4,4,0,0,0,0,-19,-9,-23,-5,-42,-59,-37,-42,-37,-33,-33,-38,
-47,-19,-13,47,37,15,0,0,0,25,-9,-19,-12,-14,-29,-6,-45,-37,-313,-270,-1250,
-1223,-1218,-1062]} 1. e4 {[%emt 0:00:08]} c6 {[%emt 0:00:07]} 2. d4 {[%emt 0:
00:00]} d5 {[%emt 0:00:05]} 3. e5 {[%emt 0:00:29]} Bf5 {[%emt 0:00:06]} 4. h4 {
[%emt 0:00:37]} Qb6 {[%emt 0:00:12]} 5. a4 {[%emt 0:03:01]} a5 {[%emt 0:00:19]}
6. Nf3 {[%emt 0:05:01] B12: Caro-Kann: Advance Variation.} e6 {[%emt 0:00:53] 
[#]} 7. Bd3 $146 {[%emt 0:02:56]} ({Predecessor:} 7. Nbd2 Bg4 8. Nb3 Ne7 9. Qd3
Na6 10. Bd2 Nb4 11. Qc3 Nf5 12. Be2 Bxf3 13. Bxf3 Nxd4 {0-1 (28) Narayanan,S 
(2467)-Kunal,M (2350) Bhubaneswar 2015}) 7... Bg4 {[%emt 0:00:50]} 8. c3 {
[%emt 0:02:32] The position is equal.} c5 {[%emt 0:01:17]} 9. Bb5+ {[%emt 0:00:
00]} Nc6 {[%emt 0:02:23]} 10. Be3 {[%emt 0:05:15]} Nh6 {[%emt 0:15:47]} 11.
dxc5 {[%emt 0:01:54]} (11. Bxh6 $5 gxh6 12. O-O $11) 11... Bxc5 {[%emt 0:01:59]
} 12. Bxc5 {[%emt 0:01:12]} Qxc5 {[%emt 0:00:06]} 13. Qd4 {[%emt 0:00:59]} Qe7
{[%emt 0:00:08] And now ...Bxf3 would win.} 14. Nbd2 {[%emt 0:02:43]} O-O {
[%emt 0:02:36]} 15. Qe3 {[%emt 0:10:34]} Bxf3 {[%emt 0:10:14]} 16. Nxf3 {
[%emt 0:00:58]} f6 {[%emt 0:00:24]} (16... Qc7 $11) 17. exf6 $1 $14 {[%emt 0:
00:00]} Rxf6 {[%emt 0:01:21]} 18. O-O {[%emt 0:06:26]} Nf5 {[%emt 0:05:49]
[%cal Yh6f5,Yf5h4,Yh4g2,Yg2f4,Yf4h3]} 19. Qe2 {[%emt 0:00:44]} Qc5 {[%emt 0:01:
18]} 20. Bxc6 {[%emt 0:10:57]} bxc6 {[%emt 0:00:59]} 21. Qe5 {[%emt 0:00:36]
Prevents Ng3.} Raf8 {[%emt 0:05:04]} 22. Rae1 {[%emt 0:02:01]} Qc4 {[%emt 0:01:
32][%csl Ya4,Yh4]} 23. Nd4 {[%emt 0:06:11]} Nxh4 {[%emt 0:00:00] White must
now prevent ...Rg6.} 24. Qg5 {[%emt 0:10:03] [#]} ({White must play} 24. Qe2 $1
$15) 24... Nxg2 $1 $19 {[%emt 0:03:43]} 25. Rxe6 {[%emt 0:01:54]} ({Of course
not} 25. Qxg2 Rg6 26. Qxg6 hxg6) (25. Kxg2 Rg6 26. Qxg6 hxg6 27. Rxe6) 25...
Nf4 {[%emt 0:00:40]} 26. Rxf6 {[%emt 0:00:52]} Nh3+ {[%emt 0:00:19] Weighted
Error Value: White=0.64/Black=0.10 (very precise)} 0-1

[Event "44th Chess Olympiad Open 2022"]
[Site "Chennai"]
[Date "2022.08.07"]
[Round "9.17"]
[White "Moroni, Luca Jr"]
[Black "Baburin, Alexander"]
[Result "1-0"]
[WhiteElo "2584"]
[BlackElo "2400"]
[Annotator "TA"]
[PlyCount "51"]
[EventDate "2022.??.??"]
[TimeControl "60"]

{[%evp 24,51,35,30,69,50,70,43,41,56,48,0,0,0,0,7,226,201,237,236,392,375,442,
447,446,444,436,408,401,393]} 1. e4 {[%emt 0:00:03][%cal Ye2e4,Ye4e5]} Nf6 {
[%emt 0:00:13][%cal Yg8f6,Yf6d5,Yd5b6]} 2. e5 {[%emt 0:00:05]} Nd5 {[%emt 0:00:
04]} 3. d4 {[%emt 0:00:13]} d6 {[%emt 0:00:27]} 4. c4 {[%emt 0:00:00]} Nb6 {
[%emt 0:00:00]} 5. f4 {[%emt 0:00:10]} Bf5 {[%emt 0:01:02]} 6. Nc3 {[%emt 0:00:
21]} e6 {[%emt 0:00:07]} 7. Nf3 {[%emt 0:00:19]} Be7 {[%emt 0:00:00]} 8. Be2 {
[%emt 0:01:15]} dxe5 {[%emt 0:01:22]} 9. fxe5 {[%emt 0:00:07]} O-O {[%emt 0:00:
25]} 10. O-O {[%emt 0:01:39]} Nc6 {[%emt 0:00:40]} 11. Be3 {[%emt 0:00:13]} f6
{[%emt 0:00:06]} 12. exf6 {[%emt 0:00:04]} Bxf6 {[%emt 0:00:00]} 13. Qd2 {
[%emt 0:00:08]} h6 {[%emt 0:00:08] B03: Alekhine's Defence: Four Pawns Attack.}
14. Rad1 {[%emt 0:00:56]} Qe8 {[%emt 0:00:15] [#]} 15. Kh1 $146 {[%emt 0:00:25]
} ({Predecessor:} 15. b3 Rd8 16. Qe1 Qg6 17. Nh4 Bxh4 18. Qxh4 a5 19. Bf3 a4
20. d5 exd5 21. Bxb6 cxb6 22. Nxd5 Bd3 23. Rf2 Kh7 24. Rxd3 Qxd3 {1-0 (24)
Goncharov,V (2077)-Mischuk,D (2339) Chess.com INT 2021}) 15... Rd8 {[%emt 0:02:
45][%cal Yf6d4] White is slightly better.} 16. Qc1 {[%emt 0:04:00]} Rf7 {
[%emt 0:30:20]} 17. d5 {[%emt 0:25:51]} (17. Rfe1 $14 {is more appropriate.})
17... exd5 $11 {[%emt 0:17:13]} 18. cxd5 {[%emt 0:02:01][%cal Yc4d5,Yd5d6,
Yd6c7]} Nb4 {[%emt 0:04:02]} 19. Bxb6 {[%emt 0:16:43]} axb6 $2 {[%emt 0:14:37]
[#] This costs Black the game.} (19... cxb6 $11 {and Black has nothing to
worry.} 20. Bb5 Bd7) 20. Bc4 $1 $18 {[%emt 0:03:40]} Kh8 {[%emt 0:02:37]} 21.
d6 {[%emt 0:07:36] Inhibits Re7.} Rfd7 {[%emt 0:08:34]} (21... Rxd6 {was
called for.} 22. Bxf7 Qxf7) 22. Qf4 $1 {[%emt 0:02:29][%csl Yc7,Yf5]} Bc2 {
[%emt 0:01:37]} 23. Rde1 {[%emt 0:04:09]} Qf8 {[%emt 0:04:11]} 24. dxc7 {
[%emt 0:02:56]} Rc8 {[%emt 0:00:15]} 25. Be6 {[%emt 0:01:54]} Nd3 {[%emt 0:01:
20]} 26. Qd2 {[%emt 0:03:16] Weighted Error Value: White=0.06 (flawless) /
Black=0.53} 1-0

[Event "44th Chess Olympiad Open 2022"]
[Site "Chennai"]
[Date "2022.08.07"]
[Round "9.17"]
[White "Sonis, Francesco"]
[Black "Kanyamarala, Tarun"]
[Result "1/2-1/2"]
[WhiteElo "2543"]
[BlackElo "2379"]
[Annotator "TA"]
[PlyCount "83"]
[EventDate "2022.??.??"]
[TimeControl "60"]

{[%evp 11,83,27,27,16,24,11,26,7,39,26,64,-5,0,-5,-5,-10,0,0,0,0,0,0,7,0,2,2,9,
-14,-16,0,-19,-26,-24,-22,-23,-27,-22,-31,-15,-30,-27,-33,28,0,8,-67,0,5,120,
116,118,134,107,126,151,160,162,98,123,8,7,-275,0,0,0,0,0,0,0,0,0,0,0,0]} 1.
Nf3 {[%emt 0:00:02]} d5 {[%emt 0:00:17]} 2. g3 {[%emt 0:00:07]} Nc6 {[%emt 0:
00:00]} 3. d4 {[%emt 0:00:06]} Bf5 {[%emt 0:00:07]} 4. Bg2 {[%emt 0:00:06]} Nb4
{[%emt 0:00:12]} 5. Na3 {[%emt 0:00:07]} e6 {[%emt 0:00:19]} 6. O-O {[%emt 0:
00:00]} Be7 {[%emt 0:00:20]} 7. c3 {[%emt 0:00:48] D02:1 d4 d5 2 Nf3 sidelines,
including 2...Nf6 3 g3 and 2...Nf6 3 Bf4.} Nc6 {[%emt 0:00:05]} 8. Qa4 {
[%emt 0:00:05]} Qd7 {[%emt 0:02:56]} 9. b4 {[%emt 0:05:43] White has an edge.}
a6 {[%emt 0:07:46][%cal Yc6e5]} 10. b5 {[%emt 0:06:03]} Na7 {[%emt 0:00:00]
[%cal Ra6b5]} 11. Ne5 {[%emt 0:00:05]} (11. c4 $1 $14 f6 12. Nh4) 11... axb5
$11 {[%emt 0:01:06]} 12. Qb3 {[%emt 0:01:44]} Qc8 {[%emt 0:00:54] [#]} 13. g4
$146 {[%emt 0:04:15]} ({Predecessor:} 13. Nxb5 Nxb5 14. Qxb5+ c6 15. Qb3 Nf6
16. a4 O-O 17. Bg5 h6 18. Bxf6 Bxf6 19. Nd3 {0-1 (37) Muse,M (2391)-Sulava,N 
(2452) Mali Losinj 2017}) 13... Bg6 {[%emt 0:01:53]} 14. Nxb5 {[%emt 0:00:18]}
Nxb5 {[%emt 0:01:01]} 15. Qxb5+ {[%emt 0:00:04]} c6 {[%emt 0:00:09]} 16. Qb3 {
[%emt 0:00:03]} Nf6 {[%emt 0:02:56][%cal Yg8f6,Yf6e8,Ye8d6]} 17. h4 {[%emt 0:
02:06] next h5 is good for White.} h6 {[%emt 0:12:41]} 18. Nxg6 {[%emt 0:02:40]
} (18. a4 {feels hotter.} Bh7 19. Ba3 Bxa3 20. Qxa3 Nd7 21. a5) 18... fxg6 {
[%emt 0:00:03]} 19. f3 {[%emt 0:05:24]} O-O {[%emt 0:21:20]} 20. Qb1 {[%emt 0:
08:36]} Ne8 {[%emt 0:03:10]} 21. Qxg6 {[%emt 0:14:08] aiming for g5.} Bxh4 {
[%emt 0:01:10]} 22. f4 {[%emt 0:01:57]} ({Avoid the trap} 22. Bxh6 $2 Rf6 23.
Qd3 Rxh6 $19) 22... Nd6 {[%emt 0:07:01]} 23. Qd3 {[%emt 0:07:32]} Be7 {[%emt 0:
05:38]} 24. Bf3 {[%emt 0:07:18]} Qd7 {[%emt 0:03:03]} 25. Kg2 {[%emt 0:00:20]}
Ra4 {[%emt 0:01:41][%cal Yc6c5]} 26. Rh1 {[%emt 0:02:36][%cal Yf1h1,Yh1h6,
Yh6g6] Black must now prevent Rxh6!} Rfa8 {[%emt 0:09:48]} (26... Qe8 $15) 27.
a3 {[%emt 0:09:24]} (27. Qg6 $5 {[%cal Rh1h6]}) 27... Bf8 {[%emt 0:03:50]} 28.
Rb1 {[%emt 0:03:32]} ({Better is} 28. g5 $1 $11) 28... b5 {[%emt 0:01:10]} (
28... Qf7 $1 $15) 29. Qg6 {[%emt 0:01:28]} Qf7 {[%emt 0:00:52]} (29... Kh8 $11)
30. Rxh6 $1 $16 {[%emt 0:00:55][%csl Gh6][%cal Rg6h7] [#]} Qxg6 {[%emt 0:00:41]
} 31. Rxg6 {[%emt 0:00:04]} Kf7 {[%emt 0:01:44]} 32. f5 {[%emt 0:00:17]} Re8 {
[%emt 0:01:25]} 33. Bf4 {[%emt 0:11:07]} Rxa3 {[%emt 0:00:00]} 34. Rh1 {
[%emt 0:00:05]} (34. Rc1 $18) 34... Rxc3 {[%emt 0:01:18]} 35. Rh8 {[%emt 0:00:
37] White is more active.} ({White must play} 35. Bxd6 $16 Bxd6 36. g5) 35...
exf5 $11 {[%emt 0:01:00]} 36. Bxd6 $4 {[%emt 0:02:36]} Bxd6 $2 {[%emt 0:01:09]}
({Black should try} 36... Kxg6 $19 37. gxf5+ Kxf5 38. Rxf8+ Rxf8 39. Bxf8 Rc4)
37. Rxe8 {[%emt 0:00:08] [#] Hoping for Ree6. The position is equal.} Kxg6 {
[%emt 0:00:05] KRB-KRB} 38. Re6+ {[%emt 0:00:28]} Kg5 {[%emt 0:00:07] Strongly
threatening ...Bf4.} 39. Rxd6 {[%emt 0:00:07]} fxg4 {[%emt 0:00:14]} 40. Bxd5 {
[%emt 0:00:06]} cxd5 {[%emt 0:00:23]} 41. Rxd5+ {[%emt 0:30:06]} Kf4 {[%emt 0:
32:12] And now ...b4 would win.} 42. Rxb5 {[%emt 0:00:36] Weighted Error Value:
White=0.31/Black=0.28 (precise)} 1/2-1/2